bitfinex/quotes_ETHUSD_20240730
["timestamp","ask_amount","ask_price","bid_price","bid_amount"]
[1722334236749,3.54146,3342.9,3342.3,3.0855743]
[1722334236941,2.99151,3342.8,3342.3,3.0855743]
[1722334238321,2.99151,3342.8,3342.3,0.0936843]
[1722334238526,2.99151,3342.8,3342.1,5.98413]
[1722334238828,0.55,3342.9,3342.3,2.99195]
[1722334239025,3.54145,3342.9,3342.4,2.99185]
[1722334239354,3.54145,3342.9,3342.5,0.0936843]
[1722334240124,2.9915,3342.8,3342.3,2.99192]
[1722334240359,2.9915,3342.8,3342.4,0.0936843]
[1722334241848,2.9915,3342.8,3342.2,2.99203]
[1722334242043,2.99159,3342.7,3342.5,0.0936843]
[1722334242353,2.99159,3342.7,3342.6,0.0936843]
[1722334242839,2.99159,3342.7,3342.2,2.99203]
[1722334243027,2.99159,3342.7,3342.6,0.0936843]
[1722334243234,2.99159,3342.7,3342.2,2.99203]
[1722334243437,2.99159,3342.7,3342.6,0.0936843]
[1722334244067,2.99159,3342.7,3342.2,2.99203]
[1722334244239,2.99159,3342.7,3342.6,0.0936843]
[1722334244565,2.99159,3342.7,3342.6,0.09358547]
[1722334244925,2.99159,3342.7,3342.2,2.99203]
[1722334245119,2.99159,3342.7,3342.3,0.09358547]
[1722334245428,2.99152,3342.8,3342.3,3.08552547]
[1722334246135,2.99159,3342.7,3342.3,0.09358547]
[1722334246332,2.99159,3342.7,3342.2,37.99203]
[1722334246536,2.99159,3342.7,3342.3,0.09358547]
[1722334247636,2.99155,3342.8,3342.3,0.09358547]
[1722334247962,0.6533,3342.7,3342.2,2.99202]
[1722334248164,2.99155,3342.8,3342.3,2.99194]
[1722334248469,2.99155,3342.8,3342.3,3.08552547]
[1722334249353,2.99169,3342.6,3342.3,0.09358547]
[1722334249862,2.99169,3342.6,3342.1,2.99211]
[1722334250078,2.99155,3342.8,3342.4,0.09358547]
[1722334250271,2.99155,3342.8,3342.2,2.99201]
[1722334250563,4.52936,3343.0,3342.3,2.9919]
[1722334250765,4.52936,3343.0,3342.3,3.08548547]
[1722334251662,3.54136,3343.0,3342.3,3.08548547]
[1722334252159,2.9915,3342.8,3342.3,3.08548547]
[1722334253344,5.98307,3342.8,3342.3,0.09358547]
[1722334253854,2.9915,3342.8,3342.3,0.09358547]
[1722334254264,2.99159,3342.7,3342.3,0.09358547]
[1722334254571,2.99168,3342.6,3342.3,0.09358547]
[1722334254940,2.99168,3342.6,3342.1,2.99208]
[1722334255139,2.99168,3342.6,3342.2,35.09344789]
[1722334255369,2.99159,3342.7,3342.2,35.09344789]
[1722334255569,2.9915,3342.8,3342.2,35.09344789]
[1722334255570,2.9915,3342.8,3342.2,38.08547789]
[1722334256643,0.6996685,3342.7,3342.3,2.99195]
[1722334256842,2.9915,3342.8,3342.3,2.99195]
[1722334257047,0.69968428,3342.7,3342.3,2.99195]
[1722334257265,2.9915,3342.8,3342.4,0.09344789]
[1722334257443,2.99142,3342.9,3342.4,0.09344789]
[1722334257644,10.29124,3343.1,3342.6,2.99167]
[1722334258061,10.29124,3343.1,3342.7,0.09343929]
[1722334258473,10.29124,3343.1,3342.6,37.99167]
[1722334258654,10.29124,3343.1,3342.8,0.09343929]
[1722334258859,10.29124,3343.1,3342.6,2.99167]
[1722334259055,10.29124,3343.1,3342.9,0.09343929]
[1722334259243,10.29124,3343.1,3342.9,0.33041955]
[1722334259439,7.3,3343.1,3343.0,0.09343929]
[1722334259683,8.46756587,3343.1,3343.0,0.09343929]
[1722334260073,11.45879587,3343.1,3343.0,0.09343929]
[1722334260790,8.46756587,3343.1,3343.0,0.09343929]
[1722334261481,11.45879587,3343.1,3343.0,0.09343929]
[1722334261657,8.46756587,3343.1,3343.0,0.09343929]
[1722334263351,0.61756587,3343.1,3343.0,0.09343929]
[1722334265589,2.3643,3343.6,3343.0,3.41515884]
[1722334265797,1.11113602,3343.5,3343.0,3.41515884]
[1722334266018,0.56113602,3343.4,3343.0,0.42385884]
[1722334266358,0.56113602,3343.4,3343.1,0.33041955]
[1722334266671,0.56113602,3343.4,3343.2,0.09329049]
[1722334266672,3.55211602,3343.4,3343.2,0.09329049]
[1722334266868,3.55218602,3343.3,3343.2,0.09329049]
[1722334269190,0.56113602,3343.3,3343.2,0.09329049]
[1722334269384,0.55,3343.5,3343.2,0.09329049]
[1722334269617,0.56107549,3343.4,3343.2,0.09329049]
[1722334269894,0.55,3343.5,3343.2,0.09329049]
[1722334270096,3.54092,3343.5,3343.2,0.09329049]
[1722334270806,0.55,3343.5,3343.2,0.09329049]
[1722334271104,2.99079,3343.6,3343.2,0.09329049]
[1722334272400,2.99103,3343.4,3343.2,0.09329049]
[1722334272911,5.98166,3343.6,3343.2,0.09329049]
[1722334273093,2.99088,3343.5,3343.2,0.09329049]
[1722334273813,8.288,3343.7,3343.2,0.09329049]
[1722334273814,2.99083,3343.6,3343.2,0.09329049]
[1722334274676,5.9817,3343.6,3343.2,0.09329049]
[1722334274875,5.98168,3343.6,3343.2,0.09329049]
[1722334275439,2.99083,3343.6,3343.2,0.09329049]
[1722334276419,2.99089,3343.5,3343.2,0.09329049]
[1722334278497,3.9787,3343.7,3343.2,0.09329049]
[1722334278693,0.56116244,3343.6,3343.2,0.09329049]
[1722334278999,2.99085,3343.6,3343.2,0.09329049]
[1722334279211,6.40397,3343.9,3343.2,3.08443049]
[1722334279559,4.11113179,3343.8,3343.2,3.08443049]
[1722334279830,0.56113179,3343.7,3343.2,3.08443049]
[1722334280006,0.56113179,3343.6,3343.2,3.08443049]
[1722334280208,3.55,3343.8,3343.2,3.08443049]
[1722334280424,0.56106917,3343.7,3343.2,3.08443049]
[1722334280741,0.55,3343.8,3343.3,2.99105]
[1722334281036,0.55,3343.8,3343.4,0.09301546]
[1722334281037,0.56107495,3343.7,3343.4,0.09301546]
[1722334281238,3.54065,3343.8,3343.4,0.09301546]
[1722334281402,0.56104555,3343.7,3343.4,0.09301546]
[1722334281613,3.54065,3343.8,3343.2,2.99112]
[1722334281793,0.56099604,3343.7,3343.2,2.99112]
[1722334281999,0.55,3343.8,3343.2,2.99112]
[1722334282214,2.99057,3343.9,3343.3,1.08101546]
[1722334282610,2.99057,3343.9,3343.4,2.99096]
[1722334282805,2.99057,3343.9,3343.4,3.08376921]
[1722334284937,2.99057,3343.9,3343.4,0.09280921]
[1722334285640,2.99061,3343.8,3343.4,0.09280921]
[1722334286143,2.99074,3343.7,3343.4,0.09280921]
[1722334286444,5.9815,3343.7,3343.1,0.33041955]
[1722334286737,2.99074,3343.7,3343.5,0.09280921]
[1722334286936,2.99057,3343.9,3343.3,0.05981431]
[1722334287093,2.99057,3343.9,3343.6,0.09280921]
[1722334287421,7.3,3344.0,3343.7,0.09280921]
[1722334287622,2.99039,3344.1,3343.5,5.47407]
[1722334287926,2.99039,3344.1,3343.8,0.09280921]
[1722334288123,2.99039,3344.1,3343.5,5.47407]
[1722334288361,2.99039,3344.1,3343.9,0.09257296]
[1722334288635,2.99039,3344.1,3343.5,5.47401]
[1722334288636,3.987247,3344.1,3344.0,0.09257296]
[1722334288817,4.537247,3344.1,3343.5,2.4832]
[1722334289023,3.54039,3344.1,3344.0,0.09257296]
[1722334289237,3.54039,3344.1,3343.5,5.47407]
[1722334289396,2.99045,3344.0,3343.5,5.47407]
[1722334290722,0.55,3344.1,3343.6,3.08335296]
[1722334291242,3.5404,3344.1,3343.6,0.09257296]
[1722334291445,0.55,3344.1,3343.6,0.09257296]
[1722334291612,3.54036,3344.1,3343.6,0.09257296]
[1722334292246,6.53076,3344.1,3343.6,0.09257296]
[1722334292449,6.53077,3344.1,3343.6,0.09257296]
[1722334292650,2.99044,3344.0,3343.6,0.09257296]
[1722334294509,3.54035,3344.1,3343.6,0.09257296]
[1722334294859,2.9902,3344.3,3343.7,2.99069]
[1722334295196,3.54025,3344.2,3343.7,3.08295799]
[1722334295611,10.29003,3344.5,3344.1,0.33041955]
[1722334295791,10.28999,3344.5,3344.1,0.33041955]
[1722334295959,10.28999,3344.5,3344.1,2.81551955]
[1722334296163,10.28999,3344.5,3344.2,0.09226799]
[1722334296164,13.28004,3344.5,3344.2,0.09226799]
[1722334296384,10.28999,3344.5,3344.2,0.42268754]
[1722334297196,10.28999,3344.5,3344.2,0.33041955]
[1722334297397,10.28998,3344.5,3344.2,0.33041955]
[1722334297783,10.28998,3344.5,3344.3,0.09226799]
[1722334298297,7.3,3344.5,3344.4,0.09226799]
[1722334298527,2.98971,3344.8,3344.2,0.33041955]
[1722334298689,2.9898,3344.7,3344.2,0.33041955]
[1722334299015,2.9898,3344.7,3344.3,0.09226799]
[1722334299167,2.98972,3344.8,3344.3,0.09226799]
[1722334299373,2.98972,3344.8,3344.2,3.32065955]
[1722334299917,2.98972,3344.8,3344.3,0.09226799]
[1722334300131,3.4663,3345.1,3344.3,35.09226799]
[1722334300132,2.98998,3344.5,3344.3,35.09226799]
[1722334300275,2.98998,3344.5,3344.3,35.0]
[1722334300467,2.98983,3344.7,3344.4,0.09226799]
[1722334300468,2.98989,3344.6,3344.4,0.09226799]
[1722334300670,2.99013,3344.4,3344.2,0.33041955]
[1722334300898,2.99016,3344.3,3344.2,0.33041955]
[1722334302238,2.98998,3344.5,3344.2,0.33041955]
[1722334302516,2.99013,3344.4,3344.2,0.33041955]
[1722334302683,2.99016,3344.3,3344.2,0.33041955]
[1722334305816,2.99012,3344.4,3344.2,0.42268754]
[1722334306476,2.98995,3344.6,3344.2,0.42268754]
[1722334306823,2.98947,3345.1,3344.2,3.41293754]
[1722334306824,2.98962,3344.9,3344.2,3.41293754]
[1722334307020,2.98981,3344.7,3344.3,2.2556]
[1722334307241,2.9899,3344.6,3344.3,2.2556]
[1722334307391,2.9899,3344.6,3344.3,35.09210479]
[1722334307836,2.9899,3344.6,3344.3,0.09210479]
[1722334308042,2.98998,3344.5,3344.3,0.09210479]
[1722334308191,2.98998,3344.5,3344.2,0.33041955]
[1722334308192,2.98998,3344.5,3344.2,35.33041955]
[1722334308789,2.98998,3344.5,3344.3,0.09210479]
[1722334308988,5.97969,3344.7,3344.3,0.09210479]
[1722334309204,2.98981,3344.7,3344.2,35.33041955]
[1722334309432,5.97936,3344.9,3344.4,0.09210479]
[1722334309640,2.98967,3344.9,3344.3,2.99013]
[1722334309798,2.98967,3344.9,3344.5,0.09210479]
[1722334309999,2.98972,3344.8,3344.3,2.99013]
[1722334310202,2.98972,3344.8,3344.4,0.09210479]
[1722334311315,2.98981,3344.7,3344.4,0.09210479]
[1722334311595,2.98972,3344.8,3344.2,0.33041955]
[1722334311596,2.98989,3344.6,3344.2,0.33041955]
[1722334312133,2.98999,3344.5,3344.3,0.09184715]
[1722334312542,2.98999,3344.5,3344.2,0.33041955]
[1722334312841,2.98999,3344.5,3344.4,0.09184715]
[1722334313036,2.98999,3344.5,3344.2,0.33041955]
[1722334313535,2.98999,3344.5,3344.3,0.09184715]
[1722334313958,2.98999,3344.5,3344.2,0.33041955]
[1722334314249,2.98999,3344.5,3344.4,0.0918128]
[1722334314415,2.98999,3344.5,3344.3,0.0918171]
[1722334314932,2.98999,3344.5,3344.4,0.0918171]
[1722334315320,2.98999,3344.5,3344.2,0.33041955]
[1722334315521,2.98999,3344.5,3344.4,0.0918171]
[1722334315724,2.98999,3344.5,3344.2,0.33041955]
[1722334315931,2.99008,3344.4,3344.2,0.33041955]
[1722334316914,2.99016,3344.3,3344.2,0.33041955]
[1722334320945,10.5566898,3344.3,3344.2,0.4221465]
[1722334321103,9.81102,3344.3,3344.2,0.4221465]
[1722334321308,10.37187442,3344.3,3344.2,0.4221465]
[1722334321503,10.37187442,3344.3,3344.2,0.33041955]
[1722334326338,2.99004,3344.5,3344.0,0.988]
[1722334326538,2.98985,3344.7,3344.2,3.44908458]
[1722334326838,5.97938,3344.9,3344.3,3.08210317]
[1722334327040,2.98972,3344.8,3344.3,3.08210317]
[1722334327272,2.9898,3344.7,3344.3,0.42245767]
[1722334328134,2.98968,3344.9,3344.3,3.41260767]
[1722334328549,2.98968,3344.9,3344.3,3.41256767]
[1722334328755,2.98968,3344.9,3344.3,3.41254767]
[1722334329094,7.3,3345.2,3344.4,2.98998]
[1722334329095,2.98955,3345.0,3344.4,2.98998]
[1722334329299,0.55,3345.1,3344.6,3.96054147]
[1722334329696,0.55,3345.1,3344.6,6.95037147]
[1722334329991,0.55,3345.1,3344.6,3.96054147]
[1722334330186,0.55,3345.1,3344.7,0.08879834]
[1722334330683,3.53951,3345.1,3344.7,0.08879834]
[1722334330890,3.53951,3345.1,3344.5,2.98998]
[1722334331093,0.55,3345.1,3344.8,0.08879834]
[1722334331383,0.55,3345.1,3344.6,2.98987]
[1722334331993,2.98946,3345.1,3344.7,0.08879834]
[1722334332208,2.98946,3345.1,3345.0,0.3304645]
[1722334332493,7.3,3345.2,3344.6,2.98987]
[1722334332784,3.97735,3345.3,3345.0,0.08879834]
[1722334333087,2.98935,3345.3,3344.7,2.9898]
[1722334333295,2.98937,3345.2,3344.6,2.98987]
[1722334333442,2.98937,3345.2,3344.8,0.08583839]
[1722334333668,2.98937,3345.2,3344.6,5.97969]
[1722334333892,2.98937,3345.2,3344.6,5.97965]
[1722334334093,2.98937,3345.2,3344.7,3.07277712]
[1722334334298,0.55,3345.3,3344.8,5.36178093]
[1722334334609,19.65,3345.5,3344.9,2.98957]
[1722334334610,3.53923,3345.4,3344.9,2.98957]
[1722334334766,3.53923,3345.4,3344.9,3.07254712]
[1722334335309,3.53923,3345.4,3345.1,0.33038547]
[1722334335663,3.53923,3345.4,3345.2,0.08297712]
[1722334336177,0.55,3345.4,3345.2,0.08297712]
[1722334336475,3.53919,3345.4,3345.2,0.08297712]
[1722334336906,2.98926,3345.3,3345.2,0.08297712]
[1722334337116,5.97852,3345.3,3345.2,0.08297712]
[1722334337354,2.98935,3345.2,3345.1,0.33038547]
[1722334337811,2.98935,3345.2,3345.1,0.41336259]
[1722334338794,7.460362,3345.2,3345.1,0.41336259]
[1722334339002,8.998362,3345.2,3345.1,0.41336259]
[1722334339675,8.998362,3345.2,3345.1,0.41312269]
[1722334340172,6.009012,3345.2,3345.1,0.41312269]
[1722334340520,5.021012,3345.2,3345.1,0.41312269]
[1722334341667,11.27713,3345.5,3345.1,0.41312269]
[1722334341866,5.97863,3345.3,3345.1,0.41312269]
[1722334342105,2.98935,3345.2,3345.1,0.41312269]
[1722334343709,0.55,3345.4,3345.1,0.41312269]
[1722334343868,1.978223,3345.4,3345.1,0.41312269]
[1722334344908,2.98927,3345.3,3345.1,0.41312269]
[1722334345315,5.97862,3345.3,3345.1,0.41312269]
[1722334345610,2.98927,3345.3,3345.1,0.41312269]
[1722334346110,2.98935,3345.2,3345.1,0.41312269]
[1722334346321,4.6138343,3345.2,3345.1,0.41312269]
[1722334346686,8.1531843,3345.2,3345.1,0.41312269]
[1722334348009,1.6244843,3345.2,3345.1,0.41312269]
[1722334348215,2.98926,3345.3,3345.1,0.41312269]
[1722334348382,2.98935,3345.2,3345.1,0.41312269]
[1722334349491,3.53935,3345.2,3345.1,0.41312269]
[1722334350176,6.5287,3345.2,3345.1,0.41312269]
[1722334350914,6.5287,3345.2,3345.1,0.33038547]
[1722334351087,8.1531923,3345.2,3345.1,0.41019159]
[1722334355406,8.1531923,3345.2,3345.1,0.33038547]
[1722334355606,10.4702923,3345.2,3345.1,0.33038547]
[1722334355916,10.93743121,3345.2,3345.1,0.33038547]
[1722334356131,13.92678121,3345.2,3345.1,0.33038547]
[1722334356318,13.92678121,3345.2,3344.2,2.4553]
[1722334356319,2.98984,3344.7,3344.2,2.4553]
[1722334356558,2.98998,3344.5,3344.2,2.4553]
[1722334356764,2.99021,3344.3,3343.8,2.4553]
[1722334357047,2.99008,3344.4,3343.8,5.44583]
[1722334357251,2.99008,3344.4,3343.9,37.99051]
[1722334358258,2.4282,3344.6,3343.8,2.4553]
[1722334358434,2.99022,3344.3,3343.8,2.4553]
[1722334358832,2.99022,3344.3,3343.8,37.4553]
[1722334359339,2.9903,3344.2,3343.8,37.4553]
[1722334359538,2.99034,3344.1,3343.8,37.4553]
[1722334360269,2.99034,3344.1,3343.5,2.9908]
[1722334360270,2.99034,3344.1,3343.5,2.4395]
[1722334360578,2.99037,3344.1,3343.5,2.4395]
[1722334360875,2.99043,3344.0,3343.6,35.0]
[1722334362935,0.988,3344.1,3343.6,35.0]
[1722334363177,2.99069,3343.7,3343.2,5.45913]
[1722334363331,2.99079,3343.6,3343.2,2.468]
[1722334363733,2.99079,3343.6,3343.3,35.0]
[1722334364069,5.98166,3343.6,3343.3,35.0]
[1722334364245,2.99096,3343.4,3343.3,35.0]
[1722334364444,2.99096,3343.4,3342.9,6.39706]
[1722334364640,2.99079,3343.6,3342.9,6.39704]
[1722334364845,2.99079,3343.6,3343.0,37.99132]
[1722334365092,2.99076,3343.7,3343.0,37.99132]
[1722334365387,2.99076,3343.7,3343.0,37.99125]
[1722334365556,2.99079,3343.6,3343.1,2.99118]
[1722334365762,2.99079,3343.6,3343.1,3.0716887]
[1722334366158,2.99079,3343.6,3343.2,35.0]
[1722334366358,2.99076,3343.7,3343.2,35.0]
[1722334366573,2.99076,3343.7,3343.3,0.0805087]
[1722334366959,2.99085,3343.6,3343.3,0.0805087]
[1722334367364,2.99076,3343.7,3343.3,0.0805087]
[1722334367748,2.99086,3343.6,3343.3,0.0805087]
[1722334368173,2.99076,3343.7,3343.3,0.0805087]
[1722334368885,2.9908,3343.6,3343.3,0.0805087]
[1722334369945,2.99068,3343.8,3343.3,0.0805087]
[1722334370150,0.55,3343.7,3343.3,0.0805087]
[1722334370449,0.55,3343.7,3343.3,3.0715587]
[1722334370645,3.5407,3343.7,3343.3,0.0805087]
[1722334371188,3.5407,3343.7,3343.3,35.0805087]
[1722334371491,0.55,3343.7,3343.3,35.0805087]
[1722334372288,0.55,3343.7,3343.3,38.0715487]
[1722334372990,3.5407,3343.7,3343.3,35.0805087]
[1722334373147,0.55,3343.7,3343.3,35.0805087]
[1722334374161,2.99079,3343.6,3343.3,35.0805087]
[1722334374995,2.99096,3343.4,3343.3,35.0805087]
[1722334375144,2.99088,3343.5,3343.3,35.0805087]
[1722334376087,5.98182,3343.5,3343.3,35.0805087]
[1722334376259,2.99088,3343.5,3343.3,35.0805087]
[1722334376691,2.99096,3343.4,3343.3,35.0805087]
[1722334377540,2.99087,3343.6,3343.3,35.0805087]
[1722334378688,2.99089,3343.5,3343.3,35.0805087]
[1722334379580,2.99089,3343.5,3343.3,0.0805087]
[1722334379785,2.99089,3343.5,3343.0,2.99131]
[1722334380108,2.99089,3343.5,3343.1,35.0]
[1722334380452,2.99089,3343.5,3343.1,35.07521385]
[1722334380993,3.54074,3343.7,3343.1,35.07521385]
[1722334381209,3.54074,3343.7,3343.2,2.99109]
[1722334381690,2.99078,3343.6,3343.3,0.07521385]
[1722334381895,2.99078,3343.6,3343.2,35.0]
[1722334382058,2.99078,3343.6,3343.4,0.07521385]
[1722334382265,2.99078,3343.6,3343.2,35.0]
[1722334382688,2.99078,3343.6,3343.3,0.07521385]
[1722334382886,0.55,3343.7,3343.3,0.07521385]
[1722334383091,3.54071,3343.7,3343.3,0.07521385]
[1722334383291,2.99056,3343.9,3343.3,35.07521385]
[1722334383511,2.99056,3343.9,3343.3,38.06620385]
[1722334383724,2.99056,3343.9,3343.4,5.42936]
[1722334384090,2.99056,3343.9,3343.5,0.07521385]
[1722334384571,2.99061,3343.8,3343.5,0.07521385]
[1722334384780,2.99061,3343.8,3343.3,35.0]
[1722334385084,0.988,3344.0,3343.3,35.0]
[1722334385085,2.99048,3344.0,3343.3,35.0]
[1722334385305,0.55,3343.9,3343.4,3.06617385]
[1722334386223,2.99052,3343.9,3343.4,3.06617385]
[1722334386703,2.99043,3344.0,3343.4,6.05707385]
[1722334386885,0.55,3343.9,3343.4,3.06611385]
[1722334387274,0.55,3343.9,3343.5,2.99083]
[1722334387487,2.99034,3344.1,3343.6,5.36757]
[1722334387488,0.55,3344.0,3343.6,5.36757]
[1722334387684,0.55,3344.0,3343.6,2.3768]
[1722334387924,3.54044,3344.0,3343.6,2.3768]
[1722334388620,2.99052,3343.9,3343.4,0.07521385]
[1722334388830,2.99052,3343.9,3343.4,3.06612385]
[1722334389123,0.55,3344.0,3343.5,2.99086]
[1722334389427,2.99052,3343.9,3343.4,0.07521385]
[1722334389719,2.99052,3343.9,3343.4,3.06617385]
[1722334389881,0.55,3344.0,3343.5,2.99087]
[1722334390598,0.55,3344.0,3343.5,2.99082]
[1722334390910,0.55,3344.0,3343.5,2.99081]
[1722334391111,2.99038,3344.1,3343.6,2.99077]
[1722334391434,2.99038,3344.1,3343.6,3.06587242]
[1722334391581,2.99038,3344.1,3343.6,0.07510242]
[1722334391927,2.99038,3344.1,3343.5,2.99085]
[1722334392078,2.99038,3344.1,3343.6,0.07510242]
[1722334392274,2.99028,3344.2,3343.6,0.07510242]
[1722334392480,0.55,3344.1,3343.7,2.99068]
[1722334392694,0.55,3344.1,3343.8,0.07523527]
[1722334392926,0.55,3344.1,3343.7,2.99068]
[1722334393134,3.54034,3344.1,3343.8,0.07523527]
[1722334393284,3.54034,3344.1,3343.5,2.9908]
[1722334393487,3.54034,3344.1,3343.6,3.06601527]
[1722334394225,3.54034,3344.1,3344.0,2.1]
[1722334394379,4.292185,3344.1,3344.0,2.1]
[1722334394836,4.292185,3344.1,3344.0,2.17521813]
[1722334395014,3.54034,3344.1,3344.0,2.17521813]
[1722334395196,0.55,3344.1,3344.0,2.17521813]
[1722334395932,3.97807,3344.4,3344.0,2.17521813]
[1722334396086,0.55,3344.3,3344.0,2.17521813]
[1722334396284,3.54017,3344.3,3344.0,2.17521813]
[1722334396684,2.99025,3344.2,3344.0,2.17521813]
[1722334396931,3.54016,3344.3,3344.0,2.17521813]
[1722334397610,2.99028,3344.2,3344.0,2.17521813]
[1722334398147,2.99034,3344.1,3344.0,2.17521813]
[1722334398641,2.99025,3344.2,3344.0,2.17521813]
[1722334401498,3.54016,3344.3,3344.0,2.17521813]
[1722334401733,2.99026,3344.2,3344.0,2.17521813]
[1722334402311,3.54016,3344.3,3344.0,2.17521813]
[1722334402524,0.55,3344.3,3344.0,2.17521813]
[1722334402787,0.55,3344.3,3344.0,5.16563813]
[1722334403116,2.98999,3344.5,3344.0,5.16563813]
[1722334403117,0.55,3344.4,3344.0,5.16563813]
[1722334403521,0.55,3344.4,3344.0,8.15600813]
[1722334403821,0.55,3344.4,3344.0,5.16558813]
[1722334404338,3.54011,3344.4,3344.0,2.17521813]
[1722334404898,2.99017,3344.3,3344.0,2.17521813]
[1722334405397,3.54007,3344.4,3344.0,2.17521813]
[1722334406412,3.54007,3344.4,3344.0,2.15724936]
[1722334407022,2.99017,3344.3,3344.0,2.15724936]
[1722334407335,2.99029,3344.2,3344.0,2.15724936]
[1722334407496,2.99034,3344.1,3344.0,2.15724936]
[1722334407692,3.54034,3344.1,3344.0,2.15724936]
[1722334408289,7.51868,3344.1,3344.0,2.15724936]
[1722334408493,9.26892777,3344.1,3344.0,2.15724936]
[1722334408694,9.26892777,3344.1,3344.0,2.08203123]
[1722334409232,12.25926777,3344.1,3344.0,2.08203123]
[1722334410251,9.26892777,3344.1,3344.0,2.08203123]
[1722334412128,8.801863,3344.1,3344.0,2.08203123]
[1722334412324,12.25930278,3344.1,3344.0,2.08203123]
[1722334412747,14.60950278,3344.1,3344.0,2.08203123]
[1722334413375,17.59984278,3344.1,3344.0,2.08203123]
[1722334413525,19.79200952,3344.1,3344.0,2.08203123]
[1722334413725,14.60950278,3344.1,3344.0,2.08203123]
[1722334415932,13.62150278,3344.1,3344.0,2.08203123]
[1722334416129,14.60950278,3344.1,3344.0,2.08203123]
[1722334416827,11.61916278,3344.1,3344.0,2.08203123]
[1722334417480,11.61916278,3344.1,3344.0,2.15744653]
[1722334417643,11.61916278,3344.1,3344.0,2.08203123]
[1722334417847,7.73096278,3344.1,3344.0,2.15744653]
[1722334418178,8.71896278,3344.1,3344.0,2.08203123]
[1722334418368,8.71896278,3344.1,3344.0,2.15742939]
[1722334419784,9.26896278,3344.1,3344.0,2.15742939]
[1722334420081,9.26896278,3344.1,3344.0,2.08203123]
[1722334420447,12.25930278,3344.1,3344.0,2.08203123]
[1722334420746,14.72770278,3344.1,3344.0,2.08203123]
[1722334426799,17.72770278,3344.1,3344.0,2.08203123]
[1722334426985,20.71804278,3344.1,3344.0,2.08203123]
[1722334427188,23.70838278,3344.1,3344.0,2.08203123]
[1722334427387,25.89936371,3344.1,3344.0,2.08203123]
[1722334427614,23.70838278,3344.1,3344.0,2.08203123]
[1722334430627,19.73004278,3344.1,3344.0,2.08203123]
[1722334430773,20.71804278,3344.1,3344.0,2.08203123]
[1722334433694,21.91698478,3344.1,3344.0,2.08203123]
[1722334434276,28.06413374,3344.1,3344.0,1.23e-06]
[1722334436215,28.06413374,3344.1,3342.6,2.43]
[1722334436216,5.98318,3342.7,3342.6,2.43]
[1722334436508,2.99188,3342.4,3342.0,2.2934]
[1722334436710,2.99213,3342.1,3342.0,2.2934]
[1722334436961,2.99242,3341.8,3341.3,2.2934]
[1722334437113,7.3,3342.7,3341.5,2.3989]
[1722334437313,3.0,3343.0,3341.9,2.3989]
[1722334437314,2.9919,3342.4,3341.9,2.3989]
[1722334437672,0.55,3342.3,3341.9,2.3989]
[1722334437825,0.55,3342.3,3341.9,5.39119]
[1722334438215,2.99208,3342.2,3341.9,2.3989]
[1722334438925,2.99238,3341.9,3341.6,2.4032]
[1722334439279,2.99237,3341.9,3341.6,2.4032]
[1722334439482,2.9924,3341.8,3341.6,2.4032]
[1722334440427,2.99248,3341.7,3341.6,2.4032]
[1722334441268,2.99282,3341.4,3341.2,2.4121]
[1722334441678,2.99224,3342.0,3341.2,2.4121]
[1722334441842,2.99262,3341.6,3341.2,2.4121]
[1722334442024,2.9928,3341.4,3341.2,2.4121]
[1722334443322,2.99284,3341.3,3341.2,2.4121]
[1722334444165,2.99275,3341.4,3341.2,2.4121]
[1722334444680,0.55,3341.3,3341.2,2.4121]
[1722334445185,3.54284,3341.3,3340.6,2.99341]
[1722334445387,3.54284,3341.3,3340.7,2.4223]
[1722334445388,2.99317,3341.0,3340.7,2.4223]
[1722334445542,2.99339,3340.7,3340.3,2.4223]
[1722334445974,2.99349,3340.6,3340.3,2.4223]
[1722334447142,0.8513,3341.3,3339.8,2.99414]
[1722334447143,2.99365,3340.4,3339.8,2.99414]
[1722334447341,2.99365,3340.4,3338.6,3.95849375]
[1722334447342,2.99339,3340.7,3339.9,2.4969]
[1722334447540,0.55,3340.6,3339.1,2.4437]
[1722334447792,2.373,3340.4,3339.1,2.4437]
[1722334447948,2.99442,3339.6,3339.1,2.4437]
[1722334448145,2.99442,3339.6,3338.8,2.99503]
[1722334448146,2.99442,3339.6,3339.0,2.99486]
[1722334448369,3.5445,3339.5,3338.8,2.99504]
[1722334448572,0.55,3339.5,3338.9,2.99499]
[1722334448986,0.55,3339.5,3339.1,2.99481]
[1722334449188,0.55,3339.5,3339.1,2.99475]
[1722334449399,2.99424,3339.8,3339.1,2.99476]
[1722334449400,0.55,3339.7,3339.1,2.99476]
[1722334449552,3.54429,3339.7,3339.1,2.99476]
[1722334449991,3.54429,3339.7,3339.1,5.98952]
[1722334450382,0.55,3339.7,3339.3,2.99462]
[1722334450553,0.55,3339.8,3339.3,2.99458]
[1722334450894,2.99424,3339.8,3339.3,2.99463]
[1722334451112,0.55,3339.7,3339.2,2.99472]
[1722334451268,0.55,3339.7,3339.3,2.99461]
[1722334451469,0.55,3339.7,3339.2,2.99467]
[1722334451685,0.55,3339.7,3339.3,2.99459]
[1722334451991,0.55,3339.7,3338.9,2.99497]
[1722334452198,2.99447,3339.5,3338.9,2.99493]
[1722334452357,3.54456,3339.4,3338.9,2.99493]
[1722334453565,0.55,3339.4,3338.5,2.4437]
[1722334453789,2.99423,3339.8,3339.0,2.99481]
[1722334453790,2.99441,3339.6,3339.0,2.99481]
[1722334453996,2.99446,3339.5,3339.0,2.99481]
[1722334454152,0.55,3339.4,3338.7,2.99511]
[1722334454365,2.99483,3339.1,3338.5,2.99528]
[1722334454565,0.55,3339.0,3338.5,2.99528]
[1722334455113,3.54495,3339.0,3338.4,5.99076]
[1722334455310,0.55,3339.1,3338.5,2.9953]
[1722334455466,0.354477,3339.0,3338.5,2.9953]
[1722334455818,0.354477,3339.0,3338.6,0.07043951]
[1722334455819,0.55,3338.9,3338.6,0.07043951]